bitfinex-derivatives/quotes_SOLF0:USTF0_20250125
["timestamp","ask_amount","ask_price","bid_price","bid_amount"]
[1737775317291,0.02629319,250.0,249.99,4.0003]
[1737775317789,0.02629319,250.0,249.97,4.0005]
[1737775318689,0.02629319,250.0,249.96,6.38797008]
[1737775318883,0.02629319,250.0,249.98,10.38837008]
[1737775319089,1.3736,250.04,249.98,6.38797008]
[1737775319391,0.0303612,250.01,249.98,6.38797008]
[1737775320190,0.0303612,250.01,250.0,4.0]
[1737775320992,0.0303612,250.01,249.99,4.0003]
[1737775322392,0.0303612,250.01,250.0,6.38797008]
[1737775324594,0.0303612,250.01,250.0,10.38807008]
[1737775332003,6.12e-05,250.01,250.0,10.38807008]
[1737775337595,6.12e-05,250.01,249.98,10.41828652]
[1737775338895,6.12e-05,250.01,249.99,4.0002]
[1737775340000,6.12e-05,250.01,250.0,4.0001]
[1737775340200,6.12e-05,250.01,250.0,10.38807008]
[1737775342097,6.12e-05,250.01,250.0,4.0001]
[1737775343300,6.12e-05,250.01,250.0,10.38807008]
[1737775350511,5.321,250.1,250.04,3.9994]
[1737775350707,5.321,250.1,250.06,6.38797008]
[1737775351013,1.3223,250.1,250.06,6.38797008]
[1737775351404,1.3223,250.1,250.06,10.38717008]
[1737775351711,0.0254229,250.11,250.06,6.38797008]
[1737775352817,0.0254229,250.11,250.09,3.9987]
[1737775354209,0.0254229,250.11,250.06,6.38797008]
[1737775354404,0.0254229,250.11,250.07,3.9989]
[1737775357319,0.0254229,250.11,250.06,6.38797008]
[1737775365614,0.0254229,250.11,250.1,10.38647008]
[1737775371321,6.38797008,250.25,250.1,6.38797008]
[1737775371523,6.38797008,250.25,250.18,6.38797008]
[1737775372121,6.38797008,250.23,250.14,6.38797008]
[1737775372519,0.02674286,250.21,250.16,0.03024992]
[1737775374125,3.9972,250.19,250.16,0.03024992]
[1737775375822,4.02364286,250.21,250.16,0.03024992]
[1737775376128,0.02674286,250.21,250.16,0.03024992]
[1737775376323,3.9976,250.16,250.12,6.38797008]
[1737775376626,3.9976,250.16,250.1,6.38797008]
[1737775377425,4.02392515,250.16,250.1,6.41657589]
[1737775378925,4.02392515,250.16,250.12,6.38797008]
[1737775379124,0.02632515,250.16,250.12,6.38797008]
[1737775381525,4.02392515,250.16,250.12,6.38797008]
[1737775382029,0.02632515,250.16,250.1,0.02860581]
[1737775382224,6.38797008,250.12,250.04,6.38797008]
[1737775382429,6.38797008,250.12,250.02,6.38797008]
[1737775383125,3.999,250.08,250.02,6.38797008]
[1737775383432,0.02973132,250.08,250.02,6.38797008]
[1737775384334,0.02973132,250.08,250.02,10.38777008]
[1737775384525,0.02973132,250.08,250.04,6.38797008]
[1737775387540,0.02973132,250.08,250.02,6.38797008]
[1737775387838,3.9992,250.06,250.02,6.38797008]
[1737775388639,4.02873132,250.08,250.02,6.38797008]
[1737775390039,0.02973132,250.08,250.02,6.38797008]
[1737775390239,0.02973132,250.08,250.04,6.38797008]
[1737775390938,0.02973132,250.08,250.02,6.38797008]
[1737775391138,6.4177014,250.08,249.98,6.38797008]
[1737775392041,3.9995,250.04,249.98,6.38797008]
[1737775393043,3.9993,250.06,249.98,10.38837008]
[1737775393543,6.4177014,250.08,249.98,10.38837008]
[1737775394237,6.4177014,250.08,249.98,6.38797008]
[1737775394542,0.02973132,250.08,250.02,6.38797008]
[1737775394742,3.9988,250.09,250.02,6.38797008]
[1737775394942,0.02538731,250.08,250.01,3.9998]
[1737775398347,22.00775289,250.18,250.05,6.38797008]
[1737775398549,110.03876453,250.23,250.17,6.38797008]
[1737775398841,16.92432407,250.22,250.21,10.38477008]
[1737775399038,103.6088886,250.23,250.21,10.38477008]
[1737775399349,103.6088886,250.23,250.21,155.29651884]
[1737775399844,97.4117886,250.23,250.21,155.29651884]
[1737775400044,0.02812082,250.25,250.24,3.9963]
[1737775400248,0.02812082,250.25,250.24,13.88244907]
[1737775401147,0.02812082,250.25,250.24,20.4546258]
[1737775401748,0.02812082,250.25,250.24,24.0298084]
[1737775401949,3.9751,250.43,250.24,12.8456446]
[1737775402248,3.9938,250.4,250.28,9.96315268]
[1737775402645,3.9751,250.43,250.28,9.96315268]
[1737775402846,3.9935,250.42,250.28,9.96315268]
[1737775403042,9.96315268,250.54,250.36,9.96315268]
[1737775403245,0.02604698,250.38,250.33,0.02901044]
[1737775403443,1.2821,250.51,250.33,0.02694787]
[1737775403650,0.02769337,250.38,250.34,3.9947]
[1737775403850,1.2821,250.51,250.39,0.02661673]
[1737775404052,1.2821,250.51,250.35,9.96315268]
[1737775404252,0.02879328,250.48,250.42,0.02574056]
[1737775404453,3.9928,250.46,250.42,0.02574056]
[1737775405244,0.02879328,250.48,250.42,0.02574056]
[1737775405450,3.9932,250.44,250.42,0.02574056]
[1737775405651,3.9932,250.44,250.35,9.96315268]
[1737775406151,9.96315268,250.5,250.35,9.96315268]
[1737775406346,3.9934,250.43,250.35,9.96315268]
[1737775406559,9.96315268,250.46,250.28,154.87490144]
[1737775406753,0.02793042,250.42,250.36,0.02889951]
[1737775406950,3.9937,250.41,250.36,0.02889951]
[1737775407145,0.02793042,250.42,250.36,0.02889951]
[1737775408251,3.9937,250.41,250.36,0.02889951]
[1737775408453,0.02793042,250.42,250.36,0.02889951]
[1737775409946,3.9943,250.37,250.28,9.96315268]
[1737775410250,9.96315268,250.45,250.28,9.96315268]
[1737775410552,2.7,250.5,250.28,9.96315268]
[1737775410758,2.02911749,250.49,250.28,13.95865268]
[1737775410954,0.71524196,250.48,250.33,9.96315268]
[1737775411153,3.9939,250.39,250.29,9.96315268]
[1737775411854,0.0283687,250.41,250.25,9.96315268]
[1737775412248,9.96315268,250.43,250.25,9.96315268]
[1737775412455,0.02832839,250.36,250.25,9.96315268]
[1737775412951,3.9948,250.34,250.25,9.96315268]
[1737775413456,0.02832839,250.36,250.25,9.96315268]
[1737775414558,3.9955,250.29,250.21,9.96315268]
[1737775414960,3.9955,250.3,250.21,9.96315268]
[1737775415159,0.03014802,250.28,250.21,9.96315268]
[1737775415660,0.03014802,250.28,250.25,9.96315268]
[1737775419958,0.03014802,250.28,250.25,13.95925268]
[1737775420456,0.03014802,250.28,250.25,9.96315268]
[1737775420761,0.03014802,250.28,250.26,3.9959]
[1737775422958,0.00364802,250.28,250.26,3.9959]
[1737775423654,3.9942,250.38,250.25,154.87490144]
[1737775423859,3.9942,250.38,250.31,3.9951]
[1737775424356,3.9942,250.38,250.32,3.995]
[1737775424562,3.9942,250.38,250.29,9.96315268]
[1737775424757,0.03061729,250.36,250.31,0.03065621]
[1737775425163,0.03061729,250.36,250.33,3.9948]
[1737775427762,0.03061729,250.36,250.31,0.03065621]
[1737775428060,0.03061729,250.36,250.34,3.9947]
[1737775429468,1.729e-05,250.36,250.34,3.9947]
[1737775429967,3.9928,250.47,250.41,3.9935]
[1737775431066,0.02720608,250.47,250.41,0.02968468]
[1737775431768,0.02720608,250.47,250.42,3.9933]
[1737775433169,0.02720608,250.47,250.41,0.02968468]
[1737775433573,0.02720608,250.47,250.43,9.96315268]
[1737775433967,0.02720608,250.47,250.45,3.9929]
[1737775435974,6.08e-06,250.47,250.45,3.9929]
[1737775437574,12.59885268,250.67,250.43,9.96315268]
[1737775437874,12.59885268,250.67,250.54,3.9915]
[1737775438073,12.59885268,250.67,250.52,9.96315268]
[1737775438375,3.991,250.58,250.52,3.9917]
[1737775438768,4.01940004,250.58,250.52,4.01734342]
[1737775440277,3.9914,250.55,250.52,0.02564342]
[1737775440776,3.9916,250.54,250.52,0.02564342]
[1737775440972,1.3191,250.57,250.46,3.9927]
[1737775441478,3.9914,250.56,250.48,3.9924]
[1737775441779,1.2818,250.58,250.48,3.9924]
[1737775442074,0.02557505,250.56,250.5,0.02651814]
[1737775442279,3.9914,250.55,250.5,0.02651814]
[1737775442577,0.02557505,250.56,250.5,0.02651814]
[1737775443872,0.02557505,250.56,250.44,9.96315268]
[1737775444473,3.992,250.52,250.44,9.96315268]
[1737775444779,2.6009,250.58,250.44,9.96315268]
[1737775445077,0.02621549,250.54,250.48,0.02896236]
[1737775446781,3.9922,250.5,250.48,0.02896236]
[1737775449075,3.993,250.45,250.4,9.96315268]
[1737775449281,3.993,250.45,250.38,3.994]
[1737775450280,0.02776082,250.44,250.35,9.96315268]
[1737775450582,0.02776082,250.44,250.37,3.9942]
[1737775451585,3.9938,250.4,250.35,9.96315268]
[1737775451889,0.02776082,250.44,250.31,9.96315268]
[1737775452088,2.5514,250.43,250.31,9.96315268]
[1737775452279,0.02643493,250.4,250.31,9.96315268]
[1737775452480,4.02033493,250.4,250.32,3.995]
[1737775453778,0.02643493,250.4,250.35,6.37291588]
[1737775454385,4.02033493,250.4,250.35,6.37291588]
[1737775454589,0.02643493,250.4,250.37,6.37291588]
[1737775455084,0.02643493,250.4,250.39,6.37291588]
[1737775455882,0.02643493,250.4,250.39,9.95157442]
[1737775463099,0.02643493,250.4,250.38,3.994]
[1737775463300,0.02643493,250.4,250.36,3.9944]
[1737775463502,0.02643493,250.4,250.31,9.95157442]
[1737775464206,0.02643493,250.4,250.34,3.9946]
[1737775464503,0.02643493,250.4,250.31,9.95157442]
[1737775465103,0.02643493,250.4,250.35,3.9945]
[1737775467697,4.02023493,250.4,250.35,3.9945]
[1737775467902,4.02023493,250.4,250.34,3.9946]
[1737775468101,4.02023493,250.4,250.31,9.95157442]
[1737775468904,0.02643493,250.4,250.31,9.95157442]
[1737775469607,0.02643493,250.4,250.3,144.91174876]
[1737775470103,3.9942,250.37,250.3,148.90704876]
[1737775470397,3.9942,250.37,250.3,144.91174876]
[1737775470605,0.02643493,250.4,250.3,144.91174876]
[1737775471196,3.9942,250.37,250.3,144.91174876]
[1737775472106,3.9942,250.37,250.3,148.90704876]
[1737775473403,3.9942,250.37,250.3,3.9953]
[1737775473804,3.9957,250.28,250.22,144.91174876]
[1737775474003,3.9957,250.28,250.17,177.199933]
[1737775474204,0.03062825,250.28,250.17,177.199933]
[1737775474905,0.03062825,250.28,250.21,3.9967]
[1737775475706,4.02632825,250.28,250.21,10.37656108]
[1737775476000,0.03062825,250.28,250.21,6.37986108]
[1737775476207,3.997,250.2,250.13,6.37986108]
[1737775476406,6.37986108,250.2,250.12,139.37363215]
[1737775476605,0.02941406,250.19,250.12,139.37363215]
[1737775476907,0.02941406,250.19,250.13,6.37986108]
[1737775477809,0.02941406,250.19,250.12,143.37183215]
[1737775478002,0.02941406,250.19,250.12,3.9982]
[1737775478203,0.02941406,250.19,250.13,9.97473486]
[1737775479104,0.02941406,250.19,250.17,3.9974]
[1737775484407,3.9956,250.29,250.22,3.9965]
[1737775484908,3.9956,250.29,250.2,9.97473486]
[1737775485411,3.9956,250.29,250.22,0.02730798]
[1737775485611,0.02873168,250.27,250.22,0.02730798]
[1737775486210,0.02873168,250.27,250.23,3.9964]
[1737775486412,0.02873168,250.27,250.23,9.97473486]
[1737775487413,0.02873168,250.27,250.25,3.9961]
[1737775493216,11.31963486,250.46,250.23,154.88648362]
[1737775493419,2.6042,250.45,250.3,9.97473486]
[1737775493618,3.9941,250.39,250.3,9.97473486]
[1737775493916,9.97473486,250.42,250.26,9.97473486]
[1737775494318,0.02588773,250.37,250.31,0.02903862]
[1737775494526,1.34848773,250.37,250.31,0.02903862]
[1737775494726,3.995,250.32,250.31,0.02903862]
[1737775495827,1.34848773,250.37,250.31,0.02903862]
[1737775497130,3.9949,250.33,250.31,0.02903862]
[1737775498124,1.34848773,250.37,250.31,0.02903862]
[1737775500531,6.37599888,250.36,250.31,0.02903862]
[1737775500732,6.37599888,250.32,250.23,6.37599888]
[1737775501232,3.9952,250.31,250.24,3.9963]
[1737775502030,0.02835767,250.3,250.25,0.0263289]
[1737775502232,3.9962,250.25,250.18,10.37319888]
[1737775502434,6.37599888,250.24,250.14,6.37599888]
[1737775502829,3.9969,250.21,250.14,6.37599888]
[1737775503534,0.02751892,250.2,250.14,6.37599888]
[1737775503726,3.9971,250.19,250.12,139.37363215]
[1737775503924,3.9971,250.19,250.11,3.9983]
[1737775504334,0.02751892,250.2,250.11,3.9983]
[1737775506035,4.02451892,250.2,250.12,3.9982]
[1737775507336,0.02751892,250.2,250.09,9.97510203]
[1737775507536,3.9975,250.17,250.09,9.97510203]
[1737775507835,0.02751892,250.2,250.09,9.97510203]
[1737775508337,0.02751892,250.2,250.09,13.97380203]
[1737775509733,3.9976,250.16,250.09,13.97380203]
[1737775509933,0.02751892,250.2,250.07,3.45126261]
[1737775510132,9.97510203,250.21,250.07,3.45126261]
[1737775510337,0.02763778,250.16,250.07,3.45126261]
[1737775511341,0.02763778,250.16,250.01,154.88685079]
[1737775512042,3.9986,250.1,250.02,3.9998]
[1737775512441,0.0285652,250.09,250.01,154.88685079]
[1737775512743,0.0285652,250.09,250.03,3.9996]
[1737775514649,0.0285652,250.09,250.01,154.88685079]
[1737775514849,0.0285652,250.09,250.01,158.88675079]
[1737775515048,4.0272652,250.09,250.01,9.97510203]
[1737775515450,0.0285652,250.09,249.96,9.97510203]
[1737775515650,9.97510203,250.12,249.96,9.97510203]
[1737775515953,0.02994054,250.05,249.98,4.0004]
[1737775516648,0.02994054,250.05,249.96,9.97510203]
[1737775516846,0.02994054,250.05,249.99,4.0003]
[1737775517654,0.02994054,250.05,249.96,9.97510203]
[1737775517848,3.9995,250.04,249.97,4.0005]
[1737775519149,0.02994054,250.05,249.96,9.97510203]
[1737775519451,0.02994054,250.05,250.01,9.97510203]
[1737775520053,0.02994054,250.05,250.03,3.9996]
[1737775520449,0.02994054,250.05,249.97,9.97510203]
[1737775523753,6.42137352,250.05,249.96,6.39143298]
[1737775524050,6.39143298,250.03,249.94,6.39143298]
[1737775524249,6.41851655,250.03,249.94,6.39143298]
[1737775524752,4.0003,249.99,249.94,6.39143298]
[1737775525053,7.71521655,250.03,249.94,6.39143298]
[1737775526249,4.0001,250.01,249.94,6.39143298]
[1737775527356,1.32378357,250.03,250.0,6.39143298]
[1737775527550,1.3459,250.04,250.02,6.39143298]
[1737775527750,1.37428389,250.04,250.02,6.39143298]
[1737775527951,1.37428389,250.04,250.0,6.39143298]
[1737775528155,1.3459,250.04,250.0,6.39143298]
[1737775529056,1.3459,250.04,249.96,6.39143298]
[1737775529457,0.02744236,250.03,249.97,4.0006]
[1737775530355,0.02744236,250.03,249.97,4.0005]
[1737775530653,0.02744236,250.03,249.96,6.39143298]
[1737775531355,6.41887534,250.03,249.94,6.39143298]
[1737775531556,6.39143298,250.03,249.94,6.39143298]
[1737775531860,0.02975567,250.01,249.94,6.39143298]
[1737775532259,0.02975567,250.01,249.96,6.39143298]
[1737775532460,1.3459,250.04,249.96,6.39143298]
[1737775532661,0.02570393,250.01,249.96,6.39143298]
[1737775533061,0.02570393,250.01,249.96,10.39213298]
[1737775534362,0.02570393,250.01,249.96,6.39143298]
[1737775534558,4.02570393,250.01,249.94,10.39243298]
[1737775534762,4.0,250.01,249.94,10.39243298]
[1737775535064,0.02608415,250.0,249.94,10.39243298]
[1737775537365,0.02608415,250.0,249.94,6.39143298]
[1737775537665,0.02608415,250.0,249.95,4.0009]
[1737775538366,0.02608415,250.0,249.96,6.39143298]
[1737775538568,0.02608415,250.0,249.99,6.39143298]
[1737775539264,0.02608415,250.0,249.99,10.39173298]
[1737775541066,0.02608415,250.0,249.99,4.0003]
[1737775542669,0.02608415,250.0,249.95,6.39143298]
[1737775544166,0.02608415,250.0,249.95,10.39223298]
[1737775544671,0.02608415,250.0,249.95,6.39143298]
[1737775544868,0.02608415,250.0,249.97,6.39143298]
[1737775545572,0.02608415,250.0,249.99,4.0003]
[1737775546171,0.02608415,250.0,249.97,4.0005]
[1737775547375,0.02608415,250.0,249.99,4.0003]
[1737775551175,0.02608415,250.0,249.95,6.39143298]
[1737775551473,0.02608415,250.0,249.93,6.39143298]
[1737775552074,0.02608415,250.0,249.94,4.0009]
[1737775552472,0.02608415,250.0,249.93,6.39143298]
[1737775554176,0.02608415,250.0,249.95,4.0009]
[1737775554878,0.02608415,250.0,249.96,4.0008]
[1737775556281,0.02608415,250.0,249.93,6.39143298]
[1737775556476,4.0004,249.99,249.94,4.001]
[1737775557979,4.0004,249.99,249.93,10.39263298]
[1737775560276,0.02608415,250.0,249.95,10.39233298]
[1737775560581,0.02608415,250.0,249.97,6.39143298]
[1737775564883,4.0004,249.99,249.94,6.39143298]
[1737775566887,0.02608415,250.0,249.92,10.39283298]
[1737775567092,4.0005,249.98,249.92,10.39283298]
[1737775567388,4.02582856,249.98,249.92,10.39283298]
[1737775567983,4.0013,249.93,249.85,139.37363215]
[1737775568184,6.39143298,249.91,249.85,139.37363215]
[1737775568383,6.42175801,249.91,249.85,139.37363215]
[1737775569190,10.42335801,249.91,249.85,139.37363215]
[1737775569389,6.42175801,249.91,249.85,139.37363215]
[1737775569683,6.42175801,249.91,249.83,171.25115858]
[1737775569684,6.42175801,249.91,249.83,4.0028]
[1737775570085,6.42175801,249.91,249.76,139.37363215]
[1737775570086,6.39143298,249.85,249.76,139.37363215]
[1737775570290,6.39143298,249.8,249.76,139.37363215]
[1737775570589,4.0038,249.78,249.76,139.37363215]
[1737775571696,4.0038,249.78,249.71,6.39143298]
[1737775571888,10.39483298,249.8,249.71,6.39143298]
[1737775572082,0.02553928,249.77,249.73,6.39143298]
[1737775572492,0.02553928,249.77,249.71,6.39143298]
[1737775574593,0.02553928,249.77,249.75,6.39143298]
[1737775574792,0.02553928,249.77,249.73,6.39143298]
[1737775575493,0.02553928,249.77,249.75,6.39143298]
[1737775575684,0.02553928,249.77,249.75,10.39553298]
[1737775578700,3.928e-05,249.77,249.75,10.39553298]
[1737775583302,3.928e-05,249.77,249.75,155.30728174]
[1737775583507,9.04843298,249.9,249.75,155.30728174]
[1737775583508,6.39143298,249.9,249.84,4.0026]
[1737775583904,6.39143298,249.9,249.82,6.39143298]
[1737775584205,6.39143298,249.9,249.85,4.0025]
[1737775584705,6.42132006,249.9,249.85,4.03017425]
[1737775585201,0.02988708,249.9,249.85,0.02767425]
[1737775585404,0.02988708,249.9,249.89,4.0019]
[1737775586908,0.02988708,249.9,249.85,0.02767425]
[1737775587609,4.0019,249.89,249.85,0.02767425]
[1737775589409,4.0022,249.88,249.85,0.02767425]
[1737775592503,4.03178708,249.9,249.85,0.02767425]
[1737775593012,0.02988708,249.9,249.85,0.02767425]
[1737775594109,4.0019,249.89,249.85,0.02767425]
[1737775594807,4.0021,249.88,249.85,0.02767425]
[1737775595916,4.0023,249.87,249.85,0.02767425]
[1737775597119,4.0024,249.86,249.85,0.02767425]
[1737775598615,0.02988708,249.9,249.85,0.02767425]
[1737775598616,0.02988708,249.9,249.85,4.03007425]
[1737775598918,0.02988708,249.9,249.86,6.39143298]
[1737775599323,4.002,249.89,249.86,6.39143298]
[1737775599718,4.002,249.89,249.85,0.02767425]
[1737775599922,0.02988708,249.9,249.85,0.02767425]
[1737775601224,4.0019,249.89,249.85,0.02767425]
[1737775602326,0.02988708,249.9,249.85,0.02767425]
[1737775604122,0.02988708,249.9,249.86,4.0024]
[1737775606236,0.02988708,249.9,249.86,10.39383298]
[1737775606429,0.02988708,249.9,249.86,6.39143298]
[1737775606623,0.02988708,249.9,249.86,10.39363298]
[1737775606825,0.02988708,249.9,249.86,6.39143298]
[1737775607822,4.03168708,249.9,249.85,0.02767425]
[1737775608030,0.02988708,249.9,249.85,0.02767425]
[1737775608229,4.0023,249.87,249.85,0.02767425]
[1737775608829,4.0021,249.88,249.85,0.02767425]
[1737775609027,1.2724,249.89,249.86,6.39143298]
[1737775611131,0.02988708,249.9,249.86,6.39143298]
[1737775616934,0.02988708,249.9,249.86,10.39383298]
[1737775621838,0.02988708,249.9,249.86,6.39143298]
[1737775623338,0.02988708,249.9,249.86,10.39373298]
[1737775628145,0.02988708,249.9,249.86,6.39143298]
[1737775628344,0.02988708,249.9,249.88,4.002]
[1737775628545,0.02988708,249.9,249.86,6.39143298]
[1737775629445,0.02988708,249.9,249.87,4.0022]
[1737775630747,0.02988708,249.9,249.86,6.39143298]
[1737775632245,4.03168708,249.9,249.86,6.39143298]
[1737775632645,0.02988708,249.9,249.85,0.02767425]
[1737775633147,0.02988708,249.9,249.86,6.39143298]
[1737775633947,4.03168708,249.9,249.85,0.02767425]
[1737775634148,0.02988708,249.9,249.85,0.02767425]
[1737775635146,4.0019,249.89,249.85,0.02767425]
[1737775636648,0.02988708,249.9,249.85,0.02767425]
[1737775636949,4.0022,249.87,249.85,0.02767425]
[1737775637651,4.002,249.89,249.85,0.02767425]
[1737775638246,0.02988708,249.9,249.85,0.02767425]
[1737775638443,4.0021,249.88,249.85,0.02767425]
[1737775642454,4.0022,249.87,249.85,0.02767425]
[1737775643054,4.0024,249.86,249.85,0.02767425]
[1737775643555,1.2848,249.89,249.85,0.02767425]
[1737775643861,4.0022,249.87,249.85,0.02767425]
[1737775645060,1.2848,249.89,249.85,0.02767425]
[1737775645360,4.0024,249.86,249.85,0.02767425]
[1737775649663,7.76283298,249.88,249.8,6.39143298]
[1737775650268,4.0027,249.85,249.8,6.39143298]
[1737775650958,4.02969251,249.85,249.8,6.39143298]
[1737775652066,0.02699251,249.85,249.8,6.39143298]
[1737775652470,0.02699251,249.85,249.78,6.39143298]
[1737775654070,4.0029,249.83,249.78,6.39143298]
[1737775654271,0.02699251,249.85,249.78,6.39143298]
[1737775655874,4.0034,249.8,249.76,6.39143298]
[1737775656274,4.0320248,249.8,249.76,6.39143298]
[1737775657275,4.0035,249.79,249.74,6.39143298]
[1737775657872,4.0037,249.78,249.74,6.39143298]
[1737775658571,4.0321248,249.8,249.74,6.39143298]
[1737775658969,6.42005778,249.8,249.72,6.39143298]
[1737775659374,6.39143298,249.78,249.7,6.39143298]
[1737775660076,4.004,249.77,249.7,6.39143298]
[1737775661277,6.39143298,249.78,249.7,6.39143298]
[1737775661478,4.004,249.76,249.7,6.39143298]
[1737775662183,6.39143298,249.78,249.7,6.39143298]
[1737775662479,6.39143298,249.78,249.59,186.36426348]
[1737775662480,6.39143298,249.78,249.72,10.39603298]
[1737775662776,4.061,249.79,249.72,6.39143298]
[1737775662978,0.02581581,249.77,249.74,6.39143298]
[1737775663181,6.39143298,249.82,249.74,6.39143298]
[1737775663473,0.02852802,249.78,249.75,4.0041]
[1737775664381,0.02852802,249.78,249.74,6.39143298]
[1737775667483,0.02852802,249.78,249.74,10.39573298]
[1737775674592,0.02852802,249.78,249.77,4.0038]
[1737775674790,4.0029,249.83,249.77,4.0038]
[1737775674992,0.02638897,249.8,249.77,4.0038]
[1737775675187,0.02638897,249.8,249.76,6.39143298]
[1737775675388,0.02638897,249.8,249.78,10.39503298]
[1737775675589,4.0026,249.85,249.78,10.39503298]
[1737775675793,0.02572741,249.81,249.78,10.39503298]
[1737775676796,0.02572741,249.81,249.8,6.39143298]
[1737775676997,4.0022,249.87,249.8,6.39143298]
[1737775677296,0.03047747,249.83,249.8,6.39143298]
[1737775681999,0.03047747,249.83,249.78,6.39143298]
[1737775682192,4.0029,249.83,249.78,6.39143298]
[1737775682397,4.02840982,249.83,249.78,6.39143298]
[1737775684202,0.02550982,249.83,249.78,6.39143298]
[1737775684396,0.02550982,249.83,249.78,10.39503298]
[1737775685701,0.02550982,249.83,249.78,6.39143298]
[1737775687904,4.02840982,249.83,249.78,6.39143298]
[1737775688305,0.02550982,249.83,249.78,6.39143298]
[1737775688706,0.02550982,249.83,249.8,4.0033]
[1737775688907,0.02550982,249.83,249.78,6.39143298]
[1737775689604,0.02550982,249.83,249.79,4.0035]
[1737775690404,0.02550982,249.83,249.78,6.39143298]
[1737775690907,0.02550982,249.83,249.8,6.39143298]
[1737775691203,9.08363298,249.88,249.8,6.39143298]
[1737775691404,0.02526364,249.84,249.8,6.39143298]
[1737775692707,0.02526364,249.84,249.8,10.39473298]
[1737775692909,0.02526364,249.84,249.8,6.39143298]
[1737775694210,0.02526364,249.84,249.82,4.003]
[1737775694809,0.02526364,249.84,249.83,4.0029]
[1737775696112,0.02526364,249.84,249.81,4.003]
[1737775697003,0.02526364,249.84,249.83,6.39143298]
[1737775697211,10.39313298,249.91,249.83,10.39433298]
[1737775697511,0.02934704,249.86,249.83,10.39433298]
[1737775699013,0.02934704,249.86,249.85,6.39143298]
[1737775699312,0.03066527,249.88,249.85,6.39143298]
[1737775699510,0.03066527,249.88,249.87,6.39143298]
[1737775699714,4.0011,249.94,249.87,6.39143298]
[1737775699913,0.02540861,249.9,249.87,6.39143298]
[1737775701503,0.02540861,249.9,249.87,10.39363298]
[1737775702912,0.02540861,249.9,249.87,6.39143298]
[1737775711314,0.02540861,249.9,249.84,10.39403298]
[1737775711515,6.39143298,249.93,249.84,10.39403298]
[1737775711718,0.02984153,249.89,249.84,10.39403298]
[1737775711908,0.02984153,249.89,249.87,6.39143298]
[1737775712109,2.6959,249.94,249.87,6.39143298]
[1737775712314,0.02756066,249.9,249.87,6.39143298]
[1737775713118,0.02756066,249.9,249.89,6.39143298]
[1737775713317,6.39143298,250.02,249.89,6.39143298]
[1737775713516,6.39143298,250.02,249.93,6.39143298]
[1737775713717,0.03048629,249.98,249.93,6.39143298]
[1737775714618,0.03048629,249.98,249.91,10.39293298]
[1737775714814,4.03098629,249.98,249.91,10.39293298]
[1737775715011,4.03098629,249.98,249.91,6.39143298]
[1737775716514,0.03048629,249.98,249.97,6.39143298]
[1737775716713,2.561,250.03,249.97,6.39143298]
[1737775716916,6.39143298,250.11,250.02,6.39143298]
[1737775717521,0.02966885,250.09,250.02,6.39143298]
[1737775718216,4.02846885,250.09,250.02,6.39143298]
[1737775718518,0.02966885,250.09,250.02,6.39143298]
[1737775719815,0.02966885,250.09,250.04,6.39143298]
[1737775720021,3.9987,250.1,250.04,6.39143298]
[1737775720217,0.02710072,250.09,250.04,6.39143298]
[1737775721524,6.39143298,250.07,250.0,6.39143298]
[1737775721925,0.02778867,250.06,250.0,6.39143298]
[1737775722229,3.9994,250.05,250.0,6.39143298]
[1737775724323,3.9995,250.04,249.98,6.39143298]
[1737775724524,6.39143298,250.05,249.96,6.39143298]
[1737775724823,0.02548792,250.04,249.96,6.39143298]
[1737775726117,3.9999,250.02,249.96,6.39143298]
[1737775727717,0.02548792,250.04,249.96,6.39143298]
[1737775727919,4.0002,250.0,249.96,6.39143298]
[1737775729022,0.02548792,250.04,249.98,6.39143298]
[1737775729330,0.02899814,250.04,249.98,6.39143298]
[1737775731526,4.0,250.01,249.98,6.39143298]
[1737775732827,0.02899814,250.04,249.96,6.39143298]
[1737775733024,6.39143298,250.05,249.96,6.39143298]
[1737775733325,4.0001,250.01,249.96,6.39143298]
[1737775734726,4.0003,249.99,249.96,6.39143298]
[1737775736828,0.02693401,250.03,249.96,6.39143298]
[1737775737028,4.0005,249.98,249.96,6.39143298]
[1737775737527,4.0004,249.99,249.96,6.39143298]
[1737775739233,4.0005,249.98,249.96,6.39143298]
[1737775742029,0.02693401,250.03,249.96,6.39143298]
[1737775742331,6.39143298,250.01,249.9,6.39143298]
[1737775742834,4.0013,249.93,249.9,6.39143298]
[1737775744936,6.39143298,249.97,249.88,6.39143298]
[1737775745130,6.39143298,249.95,249.86,6.39143298]
[1737775745332,6.42068931,249.95,249.86,6.39143298]
[1737775745534,4.0018,249.9,249.86,6.39143298]
[1737775746729,6.42068931,249.95,249.86,6.39143298]
[1737775746931,4.0016,249.91,249.86,6.39143298]
[1737775747931,6.42068931,249.95,249.86,6.39143298]